{"text_format":"1","workbook":"xlsx","n_sheets":1,"sheets":["Timesheet Template"],"not_rendered":{"charts":0,"images":0,"macros":1,"external_links":0,"defined_names":0,"comments":0,"pivot_tables":0},"unopened":[],"bounds":{"document_bytes":16777216,"sheet_cells":100000,"rows_first":2000,"rows_last":500,"rows_between":2000,"halvings":0,"cell_chars":16384,"cell_head_chars":4096},"cells_cut":0,"cells_raw":0,"read":"whole","date_system":"1900"}

{"sheet":"Timesheet Template","index":0,"n_rows":38,"n_cols":17,"rows_kept":38,"cut":false,"hidden":false,"merged":[[2,8,2,9],[2,10,2,15],[1,1,1,5],[2,1,2,5],[1,13,1,16],[0,0,0,16],[26,3,26,16],[29,4,29,12],[29,14,29,16],[31,0,31,3],[32,0,32,3],[32,4,32,12],[32,14,32,16],[36,0,36,3],[36,12,36,13],[37,0,37,3],[37,12,37,13],[33,0,33,3],[33,12,33,13],[34,0,34,3],[34,12,34,13],[35,0,35,3],[35,12,35,13]]}
["TIME SHEET"]
["Employee:",null,null,null,null,null,"Rate of Pay: _________",null,null,"/Hourly/Biweekly/Monthly",null,null,null,"Pay Period: _________________"]
["Title:",null,null,null,null,null,null,null,"Supervisor Title:"]
[]
["Grant/Task","SUN","MON","TUES","WED","THUR","FRI","SAT","TOTAL HOURS","SUN","MON","TUES","WED","THUR","FRI","SAT","TOTAL HOURS"]
["VOCA ",null,null,null,null,null,null,null,{"$f":"SUM(B6:H6)","v":0},null,null,null,null,null,null,null,{"$f":"SUM(J6:P6)","v":0}]
["CVA ",null,null,null,null,null,null,null,{"$f":"SUM(B7:H7)","v":0},null,null,null,null,null,null,null,{"$f":"SUM(J7:P7)","v":0}]
["FVPSA ",null,null,null,null,null,null,null,0,null,null,null,null,null,null,null,0]
["STOP DISCRETIONARY",null,null,null,null,null,null,null,0,null,null,null,null,null,null,null,0]
["STOP PROSECUTION",null,null,null,null,null,null,null,0,null,null,null,null,null,null,null,0]
["SGF",null,null,null,null,null,null,null,0,null,null,null,null,null,null," ",0]
["DVOT",null,null,null,null,null,null,null,0,null,null,null,null,null,null,null,0]
["ESG",null,null,null,null,null,null,null,0,null,null,null,null,null,null,null,0]
["NDVPF ",null,null,null,null,null,null,null,0,null,null,null,null,null,null,null,0]
["OUTREACH",null,null,null,null,null,null,null,0,null,null,null,null,null,null,null,0]
[null,null,null,null,null,null,null,null,0,null,null,null,null,null,null,null,0]
["Administrative/Managerial Duties",null,null,null,null,null,null,null,0,null,null,null,null,null,null,null,0]
["Fundraising",null,null,null,null,null,null,null,0,null,null,null,null,null,null,null,0]
["Other Non-grant work",null,null,null,null,null,null,null,0,null,null,null,null,null,null,null,0]
["Paid Time Off (PTO)",null,null,null,null,null,null,null,0,null,null,null,null,null,null,null,0]
["Sick Leave",null,null,null,null,null,null,null,0,null,null,null,null,null,null,null,0]
["Leave: Other: ______________________",null,null,null,null,null,null,null,0,null,null,null,null,null,null,null,0]
["Comp Time Used",null,null,null,null,null,null,null,0,null,null,null,null,null,null,null,0]
["Holiday",null,null,null,null,null,null,null,0,null,null,null,null,null,null,null,0]
["TOTALS:",{"$f":"SUM(B6:B24)","v":0},0,0,0,0,0,0,0,0,0,0,0,0,0,0,0]
["Comp Time Earned: ",0,0,0,0,0,0,0,{"$f":"SUM(B26:H26)","v":0},0,0,0,0,0,0,{"$f":"P25","v":0},{"$f":"SUM(J26:P26)","v":0}]
[null,null,null,"By signing below, I hereby attest that the time recorded on this time sheet is true and accurate to the best of my knowledge."]
[]
[]
[" ",null,null,null,"Employee Signature",null,null,null,null,null,null,null,null,null,"Date"]
[]
[]
["Instructions:",null,null,null,"Supervisor's Signature",null,null,null,null,null,null,null,null,null,"Date"]
["1. Calculate all time in 15 minute increments, for example: 1.25, 2.50, 4.75",null,null,null,null,null,null,null,null,null,null,null,null,null,"Comp","PTO","Sick"]
["2. Employee must submit time sheet to supervisor by the Monday following the",null,null,null,null,null,null,null,null,null,null,null,"Previous Balance",null,0,0,0]
["    end of the pay period.",null,null,null,null,null,null,null,null,null,null,null,"Accumulated",null,{"$f":"SUM(I26+Q26)","v":0},2,2]
["3. Sign time sheet in ink pen only.",null,null,null,null,null,null,null,null,null,null,null,"Used",null,{"$f":"I23+Q23","v":0},{"$f":"I20+Q20","v":0},{"$f":"I21+Q21","v":0}]
["4. Cross out any errors, write-in correct number, and initial correction.",null,null,null,null,null,null,null,null,null,null,null,"New Balance",null,{"$f":"O35+O36-O37","v":0},{"$f":"P35+P36-P37","v":2},{"$f":"Q35+Q36-Q37","v":2}]